fUSD/lending_fUSD_20251210
["ID","MTS","AMOUNT","RATE_DAILY","PERIOD"]
[398142671,1765401045254,-500.0,0.00041095,60]
[398142672,1765401045264,-500.0,0.00041095,60]
[398142673,1765401045274,-500.0,0.00041095,60]
[398142674,1765401045284,-500.0,0.00041095,60]
[398142675,1765401045296,-500.0,0.00041095,60]
[398142676,1765401045306,-500.0,0.00041095,60]
[398142677,1765401045315,-500.0,0.00041095,60]
[398142678,1765401045440,-304.86369582,0.00041095,60]
[398142679,1765401045450,-500.0,0.00041095,60]
[398142680,1765401045460,-500.0,0.00041095,60]
[398142681,1765401045470,-500.0,0.00041095,60]
[398142682,1765401045479,-500.0,0.00041095,60]
[398142683,1765401045489,-500.0,0.00041095,60]
[398142684,1765401045498,-500.0,0.00041095,60]
[398142685,1765401045508,-500.0,0.00041095,60]
[398142686,1765401045517,-500.0,0.00041095,60]
[398142687,1765401045527,-500.0,0.00041095,60]
[398142688,1765401045536,-500.0,0.00041095,60]
[398142689,1765401045545,-500.0,0.00041095,60]
[398142690,1765401045556,-500.0,0.00041095,60]
[398142691,1765401045567,-500.0,0.00041095,60]
[398142692,1765401045577,-500.0,0.00041095,60]
[398142693,1765401045589,-500.0,0.00041095,60]
[398142694,1765401045599,-500.0,0.00041095,60]
[398142695,1765401045609,-500.0,0.00041095,60]
[398142696,1765401045618,-500.0,0.00041095,60]
[398142697,1765401045627,-500.0,0.00041095,60]
[398142698,1765401045637,-500.0,0.00041095,60]
[398142699,1765401045647,-500.0,0.00041095,60]
[398142700,1765401045656,-500.0,0.00041095,60]
[398142701,1765401045666,-500.0,0.00041095,60]
[398142702,1765401045675,-217.46227612,0.00041095,60]
[398142703,1765401045685,-500.0,0.00041095,60]
[398142704,1765401045694,-230.08,0.00041095,60]
[398142705,1765401045704,-500.0,0.00041095,60]
[398142706,1765401045713,-500.0,0.00041095,60]
[398142707,1765401045723,-500.0,0.00041095,60]
[398142709,1765401045732,-500.0,0.00041095,60]
[398142711,1765401045742,-500.0,0.00041095,60]
[398142713,1765401045752,-500.0,0.00041095,60]
[398142715,1765401045761,-500.0,0.00041095,60]
[398142716,1765401045770,-500.0,0.00041095,60]
[398142718,1765401045779,-500.0,0.00041095,60]
[398142720,1765401045789,-500.0,0.00041095,60]
[398142721,1765401045798,-500.0,0.00041095,60]
[398142723,1765401045808,-500.0,0.00041095,60]
[398142724,1765401045817,-500.0,0.00041095,60]
[398142725,1765401045826,-500.0,0.00041095,60]
[398142726,1765401045836,-500.0,0.00041095,60]
[398142727,1765401045845,-500.0,0.00041095,60]
[398142728,1765401045856,-500.0,0.00041095,60]
[398142729,1765401045868,-500.0,0.00041095,60]
[398142730,1765401045878,-500.0,0.00041095,60]
[398142731,1765401045887,-500.0,0.00041095,60]
[398142732,1765401045896,-500.0,0.00041095,60]
[398142733,1765401045906,-500.0,0.00041095,60]
[398142734,1765401045915,-500.0,0.00041095,60]
[398142735,1765401045924,-500.0,0.00041095,60]
[398142736,1765401045934,-500.0,0.00041095,60]
[398142737,1765401045943,-500.0,0.00041095,60]
[398142738,1765401045953,-584.26822735,0.00041095,60]
[398142739,1765401045962,-500.0,0.00041095,60]
[398142740,1765401045979,-500.0,0.00041095,60]
[398142741,1765401045989,-500.0,0.00041095,60]
[398142742,1765401045999,-4627.32636877,0.00041146,15]
[398142743,1765401046009,-150.0,0.00041181,30]
[398142744,1765401046019,-4627.32636877,0.00041216,15]
[398142745,1765401046029,-308.06,0.00041268,30]
[398142746,1765401046038,-4627.32636877,0.00041287,15]
[398142747,1765401046048,-153.98025715,0.00041351,3]
[398142748,1765401046060,-4627.32636877,0.00041357,15]
[398142749,1765401046069,-153.98025713,0.00041394,3]
[398142750,1765401046079,-150.0,0.00041412,30]
[398142751,1765401046089,-4627.32636877,0.00041427,15]
[398142752,1765401046099,-153.98025713,0.00041437,3]
[398142753,1765401046108,-368.6915869,0.00041448,7]
[398142754,1765401046118,-500.0,0.00041451,60]
[398142755,1765401046128,-500.0,0.00041456,60]
[398142756,1765401046138,-500.0,0.00041456,60]
[398142757,1765401046147,-500.0,0.00041456,60]
[398142758,1765401046157,-80233.0207,0.00041458,30]
[398142759,1765401046167,-153.98025713,0.00041481,3]
[398142760,1765401046177,-4627.32636877,0.00041498,15]
[398142761,1765401046187,-153.98025713,0.00041524,3]
[398142762,1765401046196,-153.0,0.00041528,120]
[398142763,1765401046206,-165.458579,0.00041531,60]
[398142764,1765401046216,-153.0,0.00041534,120]
[398142765,1765401046226,-153.0,0.00041534,120]
[398142766,1765401046235,-308.06,0.00041542,30]
[398142767,1765401046245,-9000.0,0.00041551,4]
[398142768,1765401046255,-9000.0,0.00041551,4]
[398142769,1765401046265,-9000.0,0.00041551,4]
[398142770,1765401046275,-9000.0,0.00041551,4]
[398142772,1765401046285,-3499.2971483,0.00041554,2]
[398142774,1765401046295,-150.9262185,0.00041566,60]
[398142776,1765401046305,-191.56298647,0.00041566,60]
[398142777,1765401046314,-500.0,0.00041566,60]
[398142778,1765401046324,-500.0,0.00041566,60]
[398142779,1765401046337,-500.0,0.00041566,60]
[398142780,1765401046347,-200.0,0.00041566,28]
[398142781,1765401046358,-200.0,0.00041566,28]
[398142782,1765401046367,-500.0,0.00041566,28]
[398142783,1765401046377,-200.0,0.00041566,28]
[398142784,1765401046386,-500.0,0.00041566,28]
[398142786,1765401046396,-222.4738,0.00041566,28]
[398142787,1765401046406,-500.0,0.00041566,60]
[398142789,1765401046416,-500.0,0.00041566,60]
[398142790,1765401046426,-200.0,0.00041566,28]
[398142791,1765401046436,-280.73810332,0.00041566,28]
[398142792,1765401046446,-500.0,0.00041566,28]
[398142793,1765401046456,-151.0,0.00041566,28]
[398142795,1765401046466,-151.0,0.00041566,28]
[398142797,1765401046476,-151.0,0.00041566,28]
[398142800,1765401046486,-151.0,0.00041566,28]
[398142802,1765401046496,-500.0,0.00041566,28]
[398142804,1765401046509,-151.0,0.00041566,28]
[398142806,1765401046519,-500.0,0.00041566,28]
[398142808,1765401046529,-151.0,0.00041566,28]
[398142811,1765401046540,-500.0,0.00041566,28]
[398142813,1765401046549,-151.0,0.00041566,28]
[398142815,1765401046559,-500.0,0.00041566,28]
[398142817,1765401046569,-151.0,0.00041566,28]
[398142819,1765401046580,-500.0,0.00041566,28]
[398142821,1765401046590,-151.0,0.00041566,28]
[398142823,1765401046600,-500.0,0.00041566,28]
[398142825,1765401046610,-151.0,0.00041566,28]
[398142827,1765401046619,-500.0,0.00041566,28]
[398142829,1765401046629,-151.0,0.00041566,28]
[398142832,1765401046638,-500.0,0.00041566,28]
[398142833,1765401046648,-500.0,0.00041566,28]
[398142834,1765401046657,-500.0,0.00041566,28]
[398142835,1765401046667,-500.0,0.00041566,28]
[398142836,1765401046676,-500.0,0.00041566,28]
[398142837,1765401046686,-500.0,0.00041566,28]
[398142838,1765401046703,-500.0,0.00041566,28]
[398142839,1765401046712,-500.0,0.00041566,28]
[398142840,1765401046721,-500.0,0.00041566,28]
[398142841,1765401046731,-500.0,0.00041566,28]
[398142842,1765401046740,-500.0,0.00041566,28]
[398142843,1765401046750,-500.0,0.00041566,28]
[398142844,1765401046759,-500.0,0.00041566,28]
[398142845,1765401046769,-500.0,0.00041566,28]
[398142846,1765401046778,-500.0,0.00041566,28]
[398142847,1765401046788,-500.0,0.00041566,28]
[398142848,1765401046797,-500.0,0.00041566,28]
[398142849,1765401046807,-500.0,0.00041566,28]
[398142850,1765401046817,-500.0,0.00041566,28]
[398142851,1765401046827,-500.0,0.00041566,28]
[398142852,1765401046836,-500.0,0.00041566,28]
[398142853,1765401046846,-500.0,0.00041566,28]
[398142854,1765401046855,-500.0,0.00041566,28]
[398142855,1765401046865,-500.0,0.00041566,28]
[398142856,1765401046875,-500.0,0.00041566,28]
[398142857,1765401046885,-500.0,0.00041566,28]
[398142858,1765401046900,-1000.0,0.00041566,2]
[398142859,1765401046909,-2562.4463,0.00041566,2]
[398142860,1765401046919,-10000.0,0.00041567,2]
[398142861,1765401046929,-153.98025713,0.00041567,4]
[398142862,1765401046939,-4627.32636877,0.00041568,15]
[398142863,1765401046948,-356.31541422,0.00041568,2]
[398142864,1765401046958,-593.69162244,0.00041568,120]
[398142865,1765401046967,-11424.1167397,0.00041583,2]
[398142866,1765401046981,-987.4702506,0.00041583,2]
[398142867,1765401046990,-6542.3357601,0.00041591,2]
[398142868,1765401047001,-200.0,0.00041606,120]
[398142869,1765401047019,-2169.4151509,0.00041615,2]
[398142870,1765401047033,-1002.3161682,0.00041615,2]
[398142871,1765401047043,-174.5859182,0.00041615,2]
[398142872,1765401047056,-150.0,0.00041638,7]
[398142873,1765401047066,-150.0,0.00041638,7]
[398142874,1765401047075,-500.0,0.00041638,7]
[398142875,1765401047088,-150.0,0.00041638,7]
[398142876,1765401047098,-150.0,0.00041638,7]
[398142877,1765401047108,-500.0,0.00041638,7]
[398142878,1765401047118,-500.0,0.00041638,7]
[398142879,1765401047127,-500.0,0.00041638,7]
[398142880,1765401047137,-500.0,0.00041638,7]
[398142881,1765401047146,-150.0,0.00041638,2]
[398142882,1765401047155,-500.0,0.00041638,7]
[398142883,1765401047165,-150.0,0.00041638,7]
[398142884,1765401047177,-150.0,0.00041638,7]
[398142885,1765401047186,-1000.0,0.00041638,7]
[398142886,1765401047197,-500.0,0.00041638,7]
[398142887,1765401047206,-500.0,0.00041638,7]
[398142888,1765401047216,-150.0,0.00041638,7]
[398142889,1765401047225,-208.16273017,0.00041638,7]
[398142890,1765401047235,-150.0,0.00041638,7]
[398142891,1765401047244,-500.0,0.00041638,7]
[398142892,1765401047253,-500.0,0.00041638,7]
[398142893,1765401047262,-150.0,0.00041638,2]
[398142894,1765401047275,-150.0,0.00041638,7]
[398142895,1765401047285,-500.0,0.00041643,120]
[398142896,1765401047295,-203.0,0.00041644,30]
[398142897,1765401047305,-150.0,0.00041644,30]
[398142898,1765401047315,-150.0,0.00041644,30]
[398142899,1765401047324,-368.6915869,0.00041658,7]
[398142900,1765401047336,-368.6915869,0.00041658,7]
[398142901,1765401047345,-521.69647877,0.00041661,60]
[398142902,1765401047355,-500.0,0.00041665,60]
[398142903,1765401047365,-224.61283653,0.00041665,20]
[398142904,1765401047375,-500.0,0.00041665,60]
[398142905,1765401047386,-500.0,0.00041665,60]
[398142906,1765401047396,-500.0,0.00041666,60]
[398142907,1765401047406,-500.0,0.00041666,60]
[398142908,1765401047415,-500.0,0.00041666,60]
[398142909,1765401047425,-500.0,0.00041666,60]
[398142910,1765401047435,-157.76494726,0.00041666,60]
[398142911,1765401047445,-500.0,0.00041666,60]
[398142912,1765401047455,-501.57728858,0.00041666,60]
[398142913,1765401047464,-501.67,0.00041666,60]
[398142914,1765401047476,-500.0,0.00041666,60]
[398142915,1765401047487,-500.0,0.00041666,60]
[398142916,1765401047496,-500.0,0.00041666,60]
[398142917,1765401047506,-420.39427033,0.00041666,60]
[398142918,1765401047516,-50000.0,0.00041667,33]
[398142919,1765401047526,-50000.0,0.00041667,35]
[398142920,1765401047536,-50000.0,0.00041667,36]
[398142921,1765401047545,-50000.0,0.00041667,37]
[398142922,1765401047555,-50000.0,0.00041667,38]
[398142923,1765401047566,-50000.0,0.00041667,39]
[398142924,1765401047575,-156.3254,0.00041667,120]
[398142925,1765401047587,-151.0,0.00041667,120]
[398142926,1765401047596,-151.0,0.00041667,120]
[398142927,1765401047606,-151.0,0.00041667,120]
[398142928,1765401047615,-151.0,0.00041667,120]
[398142929,1765401047625,-293.150916,0.00041667,120]
[398142930,1765401047634,-151.0,0.00041667,30]
[398142931,1765401047644,-151.0,0.00041667,120]
[398142932,1765401047654,-151.0,0.00041667,120]
[398142933,1765401047664,-151.0,0.00041667,120]
[398142934,1765401047673,-151.0,0.00041667,120]
[398142935,1765401047683,-151.0,0.00041667,120]
[398142936,1765401047694,-151.0,0.00041667,120]
[398142937,1765401047704,-151.0,0.00041667,120]
[398142938,1765401047714,-151.0,0.00041667,120]
[398142939,1765401047723,-151.0,0.00041667,120]
[398142940,1765401047733,-151.0,0.00041667,120]
[398142941,1765401047742,-151.0,0.00041667,120]
[398142942,1765401047751,-151.0,0.00041667,120]
[398142943,1765401047761,-151.0,0.00041667,120]
[398142944,1765401047771,-151.0,0.00041667,120]
[398142945,1765401047780,-151.0,0.00041667,120]
[398142946,1765401047790,-151.0,0.00041667,120]
[398142947,1765401047800,-229.476512,0.00041667,120]
[398142948,1765401047809,-151.0,0.00041667,120]
[398142949,1765401047819,-151.0,0.00041667,120]
[398142950,1765401047830,-151.0,0.00041667,120]
[398142951,1765401047839,-224.83692443,0.00041667,31]
[398142952,1765401047849,-10892.07376074,0.00041667,33]
[398142953,1765401047874,-131565.49394103,0.00041668,7]
[398142954,1765401048172,-500.0,0.00041095,60]
[398142955,1765401048183,-8280.79093088,0.00041668,7]
[398142956,1765401048195,-8947.21879473,0.00041668,7]
[398142957,1765401048207,-8943.78386462,0.00041668,7]
[398142958,1765401048218,-9077.54866152,0.00041668,7]
[398142959,1765401048230,-8943.84023489,0.00041668,7]
[398142960,1765401048241,-934.16,0.00041668,7]
[398142961,1765401048253,-3695.32561556,0.00041668,7]
[398142962,1765401048264,-265.695,0.00041668,7]
[398142963,1765401048280,-916.695,0.00041668,7]
[398142964,1765401048291,-717.5042,0.00041668,7]
[398142965,1765401048353,-161.10826904,0.00041,28]
[398142966,1765401048363,-750.19212096,0.00041668,7]
[398142967,1765401048386,-184.6043,0.00041668,7]
[398142968,1765401048398,-1792.6094988,0.00041668,7]
[398142969,1765401048458,-500.0,0.00040892,31]
[398142970,1765401048469,-500.0,0.00040892,31]
[398142971,1765401048479,-483350.74902513,0.00041668,7]
[398142972,1765401048492,-18495.7,0.00041668,7]
[398142973,1765401048504,-2361.68903014,0.00041668,7]
[398142974,1765401048515,-1100.0,0.00041668,7]
[398142975,1765401048528,-2452.584112,0.00041668,7]
[398142976,1765401048546,-500.0,0.00041095,60]
[398142977,1765401048556,-426.37,0.00041668,7]
[398142980,1765401063769,463.26239223,0.00017873,2]
[398143086,1765401308386,500.0,0.00017873,2]
[398143096,1765401641605,151.0,0.00017873,2]
[398143105,1765401908766,21190.55230572,0.00018,2]
[398143106,1765401908799,369709.70228828,0.00018,2]
[398143108,1765401996492,1166.66666,0.00018,2]
[398143110,1765402016960,147679.05000001,0.000162,5]
[398143112,1765402075083,392037.64116597,0.00017,2]
[398143118,1765402173123,-1166.66667,0.0002,2]
[398143119,1765402173282,-500.0,0.0002014,2]
[398143120,1765402173305,-500.0,0.00020487,2]
[398143121,1765402173327,-500.0,0.00020604,2]
[398143132,1765402232156,-383.77616865,0.00021176,2]
[398143134,1765402232214,-97.37792404,0.00021176,2]
[398143135,1765402232224,-1166.66667,0.00022,2]
[398143136,1765402232234,-500.0,0.00022199,2]
[398143137,1765402232244,-155.51105439,0.000239,46]
[398143138,1765402232253,-152.89062113,0.00024,2]
[398143139,1765402232264,-825.596331,0.00024,2]
[398143140,1765402232283,-188.17970787,0.00024,2]
[398143141,1765402232292,-500.0,0.00024313,2]
[398143142,1765402232302,-390.9639255,0.00024328,2]
[398143143,1765402232334,-109.0360745,0.00024328,2]
[398143144,1765402232344,-155.51105436,0.0002534,49]
[398143145,1765402232354,-3.84548421,0.00025964,2]
[398143146,1765402232366,-185.15451579,0.00025964,2]
[398143147,1765402232376,-1166.66667,0.00026,2]
[398143148,1765402232387,-155.51105436,0.0002678,53]
[398143149,1765402232398,-500.0,0.00026793,7]
[398143150,1765402232408,-1200.0,0.00027678,2]
[398143151,1765402232417,-500.0,0.00027679,7]
[398143152,1765402232427,-500.0,0.00027822,7]
[398143153,1765402232436,-1166.66667,0.00028,2]
[398143154,1765402232446,-155.51105436,0.00028221,56]
[398143155,1765402232455,-301.0,0.00028641,2]
[398143156,1765402232465,-500.0,0.0002905,7]
[398143157,1765402232474,-500.0,0.0002934,7]
[398143158,1765402232483,-150.0,0.00029406,2]
[398143159,1765402232492,-480.8,0.00029407,2]
[398143160,1765402232501,-265.3,0.00029407,5]
[398143161,1765402232510,-9999.99,0.00029407,2]
[398143162,1765402232519,-299.99,0.00029407,12]
[398143163,1765402232528,-9141.04,0.00029407,2]
[398143164,1765402232537,-4954.96,0.00029407,2]
[398143165,1765402232547,-542.0,0.00029479,2]
[398143166,1765402232556,-500.0,0.00029506,2]
[398143167,1765402232566,-500.0,0.00029506,2]
[398143168,1765402232576,-500.0,0.00029506,2]
[398143169,1765402232585,-500.0,0.00029506,2]
[398143170,1765402232594,-500.0,0.00029506,2]
[398143171,1765402232604,-500.0,0.00029506,2]
[398143172,1765402232613,-500.0,0.00029506,2]
[398143173,1765402232623,-500.0,0.00029506,2]
[398143174,1765402232632,-500.0,0.00029506,2]
[398143175,1765402232641,-500.0,0.00029506,2]
[398143176,1765402232651,-500.0,0.00029506,2]
[398143177,1765402232660,-500.0,0.00029506,2]
[398143178,1765402232670,-500.0,0.00029506,2]
[398143179,1765402232679,-370.20267803,0.00029506,2]
[398143180,1765402232688,-500.0,0.00029506,2]
[398143182,1765402232699,-500.0,0.00029506,2]
[398143184,1765402232708,-500.0,0.00029506,2]
[398143186,1765402232717,-500.0,0.00029506,2]
[398143188,1765402232727,-4450.91,0.00029507,2]
[398143190,1765402232740,-3138.87,0.00029507,2]
[398143192,1765402232750,-32028.43924732,0.00029507,2]
[398143194,1765402232763,-461.115,0.00029507,2]
[398143196,1765402232775,-4502.7494144,0.00029507,2]
[398143198,1765402232789,-915.89127462,0.00029507,2]
[398143201,1765402232802,-352.59879329,0.00029507,2]
[398143304,1765402238321,-456.2420658,0.00029507,2]
[398143305,1765402238336,-3116.82670835,0.00029507,2]
[398143306,1765402238349,-4494.19749622,0.00029507,2]
[398143307,1765402238361,-229.48289678,0.00029507,2]
[398143308,1765402238373,-873.39,0.00029507,2]
[398143309,1765402238403,-919.38,0.00029507,2]
[398143310,1765402238415,-7977.73710322,0.00029507,2]
[398143311,1765402238427,-150.99,0.00029507,2]
[398143312,1765402238438,-1812.0,0.00029538,2]
[398143313,1765402238448,-7053.37492992,0.000296,30]
[398143314,1765402238458,-155.51105436,0.00029661,60]
[398143315,1765402238468,-500.0,0.00029878,7]
[398143316,1765402238479,-273.0,0.00030124,2]
[398143318,1765402238490,-2751.0,0.00030143,120]
[398143320,1765402238500,-500.0,0.00030461,7]
[398143322,1765402238511,-999.0,0.00030473,3]
[398143324,1765402238522,-500.0,0.00030526,7]
[398143326,1765402238535,-500.0,0.0003073,7]
[398143328,1765402238546,-155.51105436,0.00031101,63]
[398143331,1765402238556,-500.0,0.00031312,7]
[398143333,1765402238566,-155.51105436,0.00032541,66]
[398143334,1765402238576,-500.0,0.00033349,7]
[398143336,1765402238587,-500.0,0.00033738,7]
[398143337,1765402238597,-155.51105436,0.00033982,70]
[398143339,1765402238608,-183.36,0.00034092,2]
[398143341,1765402238618,-2170.245,0.00034174,38]
[398143343,1765402238629,-183.522,0.00034174,38]
[398143345,1765402238639,-1000.0,0.00034604,2]
[398143346,1765402238649,-154.57415076,0.00035,5]
[398143348,1765402238660,-9735.50267491,0.00035,30]
[398143350,1765402238670,-514.49732509,0.00035,30]
[398143353,1765402238680,-150.0,0.00035209,2]
[398143355,1765402238691,-500.0,0.00035233,2]
[398143357,1765402238700,-155.51105436,0.00035422,73]
[398143359,1765402238711,-500.0,0.0003558,30]
[398143361,1765402238721,-150.0,0.00035627,2]
[398143363,1765402238730,-183.36,0.00035986,2]
[398143365,1765402238740,-155.51105436,0.00036862,77]
[398143367,1765402238750,-51242.57081133,0.00036888,60]
[398143370,1765402238776,-507.25978616,0.00036888,60]
[398143527,1765402240339,-7170.03720231,0.00036888,60]
[398143528,1765402240351,-4692.7587,0.00036888,60]
[398143529,1765402240364,-6491.52061085,0.00036888,60]
[398143530,1765402240374,-150.0,0.00036962,7]
[398143531,1765402240383,-150.0,0.00036962,7]
[398143532,1765402240396,-150.0,0.00036962,7]
[398143533,1765402240406,-150.0,0.00036962,7]
[398143534,1765402240415,-150.0,0.00036962,7]
[398143535,1765402240425,-150.0,0.00036962,7]
[398143536,1765402240435,-150.0,0.00036962,7]
[398143537,1765402240445,-150.0,0.00036962,7]
[398143538,1765402240454,-150.0,0.00036962,7]
[398143539,1765402240464,-150.0,0.00036962,7]
[398143540,1765402240475,-150.0,0.00036962,7]
[398143541,1765402240486,-150.0,0.00036962,7]
[398143542,1765402240495,-725.0,0.0003703,2]
[398143543,1765402240505,-150.0,0.00037036,7]
[398143544,1765402240515,-150.0,0.0003707,7]
[398143545,1765402240525,-150.0,0.0003709,7]
[398143546,1765402240535,-150.0,0.00037108,7]
[398143547,1765402240544,-150.0,0.00037111,7]
[398143548,1765402240554,-150.0,0.00037157,7]
[398143549,1765402240563,-150.0,0.00037157,7]
[398143550,1765402240573,-150.0,0.00037178,7]
[398143551,1765402240583,-150.0,0.00037186,7]
[398143552,1765402240592,-150.0,0.00037218,7]
[398143553,1765402240601,-150.0,0.00037218,7]
[398143554,1765402240612,-150.0,0.00037255,7]
[398143555,1765402240622,-150.0,0.0003726,7]
[398143556,1765402240631,-150.0,0.00037286,7]
[398143557,1765402240641,-150.0,0.00037335,7]
[398143558,1765402240651,-150.0,0.00037347,7]
[398143559,1765402240661,-150.0,0.00037353,7]
[398143560,1765402240671,-150.0,0.00037353,7]
[398143561,1765402240681,-150.0,0.00037394,7]
[398143562,1765402240690,-150.0,0.00037402,7]
[398143563,1765402240700,-150.0,0.0003741,7]
[398143564,1765402240711,-150.0,0.00037418,7]
[398143565,1765402240720,-725.0,0.00037455,2]
[398143566,1765402240729,-150.0,0.00037475,7]
[398143567,1765402240738,-150.0,0.00037475,7]
[398143568,1765402240748,-150.0,0.00037484,7]
[398143569,1765402240758,-150.0,0.00037502,7]
[398143570,1765402240767,-150.0,0.00037548,7]
[398143571,1765402240777,-150.0,0.00037548,7]
[398143572,1765402240786,-150.0,0.00037548,7]
[398143573,1765402240797,-150.0,0.00037548,7]
[398143575,1765402240806,-150.0,0.00037559,7]
[398143577,1765402240815,-725.0,0.00037601,2]
[398143578,1765402240825,-150.0,0.00037603,7]
[398143580,1765402240834,-150.0,0.0003761,7]
[398143581,1765402240844,-150.0,0.00037634,7]
[398143582,1765402240854,-725.0,0.00037646,2]
[398143583,1765402240863,-150.0,0.00037695,7]
[398143584,1765402240872,-150.0,0.00037708,7]
[398143585,1765402240882,-150.0,0.00037718,7]
[398143586,1765402240892,-150.0,0.00037732,7]
[398143587,1765402240902,-150.0,0.00037732,7]
[398143588,1765402240911,-150.0,0.00037744,7]
[398143589,1765402240921,-150.0,0.00037744,7]
[398143590,1765402240931,-150.0,0.00037783,7]
[398143591,1765402241066,-150.0,0.00037783,7]
[398143592,1765402241078,-150.0,0.00037826,7]
[398143593,1765402241088,-965.0,0.00037837,2]
[398143594,1765402241097,-150.0,0.00037842,7]
[398143595,1765402241107,-150.0,0.00037858,7]
[398143596,1765402241118,-150.0,0.0003786,7]
[398143597,1765402241127,-150.0,0.00037874,7]
[398143598,1765402241137,-183.36,0.0003788,2]
[398143599,1765402241146,-150.0,0.00037932,7]
[398143600,1765402241156,-150.0,0.00037934,7]
[398143601,1765402241166,-150.0,0.00037939,7]
[398143602,1765402241175,-150.0,0.00037939,7]
[398143603,1765402241185,-965.0,0.00037978,2]
[398143604,1765402241194,-150.0,0.00037988,7]
[398143605,1765402241204,-150.0,0.00037988,7]
[398143606,1765402241213,-150.0,0.00037988,7]
[398143607,1765402241223,-150.0,0.00037988,7]
[398143608,1765402241233,-965.0,0.00037999,2]
[398143609,1765402241243,-150.0,0.00038007,7]
[398143610,1765402241253,-150.0,0.00038042,7]
[398143611,1765402241262,-150.0,0.00038082,7]
[398143612,1765402241272,-150.0,0.00038117,7]
[398143613,1765402241282,-150.0,0.00038135,7]
[398143614,1765402241292,-150.0,0.00038135,7]
[398143615,1765402241302,-150.0,0.00038135,7]
[398143616,1765402241311,-150.0,0.00038135,7]
[398143617,1765402241321,-150.0,0.0003815,7]
[398143618,1765402241330,-150.0,0.00038156,7]
[398143619,1765402241339,-150.0,0.00038231,7]
[398143620,1765402241349,-150.0,0.00038245,7]
[398143621,1765402241358,-150.0,0.00038245,7]
[398143622,1765402241368,-150.0,0.00038259,7]
[398143623,1765402241377,-93.83177853,0.00038282,7]
[398143624,1765402241426,-56.16822147,0.00038282,7]
[398143625,1765402241438,-150.0,0.00038306,7]
[398143626,1765402241447,-150.0,0.00038331,7]
[398143627,1765402241457,-150.0,0.00038331,7]
[398143628,1765402241468,-150.0,0.00038331,7]
[398143629,1765402241478,-150.0,0.00038367,7]
[398143630,1765402241488,-965.0,0.00038367,2]
[398143631,1765402241498,-150.0,0.00038373,7]
[398143632,1765402241507,-150.0,0.0003838,7]
[398143633,1765402241517,-150.0,0.00038428,7]
[398143634,1765402241527,-150.0,0.00038455,7]
[398143635,1765402241537,-965.0,0.00038468,2]
[398143636,1765402241547,-150.0,0.00038475,7]
[398143637,1765402241556,-23827.68743119,0.000385,30]
[398143638,1765402241566,-150.0,0.00038502,7]
[398143639,1765402241575,-150.0,0.00038502,7]
[398143640,1765402241585,-150.0,0.00038526,7]
[398143641,1765402241595,-150.0,0.00038526,7]
[398143642,1765402241605,-150.0,0.0003853,7]
[398143643,1765402241615,-150.0,0.00038575,7]
[398143644,1765402241624,-150.0,0.00038583,7]
[398143645,1765402241633,-150.0,0.00038604,7]